Cogmind - Beta 17 @@@ ROGUE MODE // 2026.07.25 @ 15:34:13 Player: rko Result: Destroyed by D-53 Grenadier with Mini Grenade Launcher Performance ------------- Evolutions (0) 0 Regions Visited (3) 600 Robots Destroyed (37) 185 Value Destroyed (833) 833 Prototype IDs (26) 520 Alien Tech Used (0) 0 Bonus (186) 186 TOTAL SCORE: 2324 Bonus ------- Aligned with FarCom 300 Friendly Fire -114 Cogmind --------- Core Integrity 0/250 Matter 250/300 Energy 124/125 System Corruption 0% Temperature Cool (0) Movement Rolling (115) Ox1 Location -10/Exiles Parts ------- > --- POWER (1) -------- Light Ion Engine > --- PROPULSION (2) --- Compact Wheel > --- UTILITY (2) ------ Large Storage Unit Core Shielding > --- WEAPON (2) ------- Makeshift Sword > --- INVENTORY (15) --- Light Ion Engine Flying Fortress v7 Scrap Suit Improved Heat Sink Small Matter Pod (50) Large Matter Pod (150) Core Shielding Hacking Suite Tractor Beam Small Laser Small Laser Peak State ------------ > --- POWER ------------ Light Ion Engine > --- PROPULSION ------- Wheel Compact Wheel > --- UTILITY ---------- Large Storage Unit Core Shielding > --- WEAPON ----------- Small Laser Makeshift Sword > --- INVENTORY -------- Light Ion Engine Flying Fortress v7 Scrap Suit Improved Heat Sink Small Matter Pod Large Matter Pod Core Shielding Hacking Suite Small Laser Grenade Launcher Mining Laser [Rating: 15] Favorites ----------- Power Ion Engine Engine Ion Engine Power Core Light Nuclear Core Propulsion Wheel Wheel Wheel Utility Large Storage Unit Device Sensor Array Storage Large Storage Unit Protection Core Shielding Weapon Small Laser Energy Gun Small Laser Energy Cannon Beam Cannon Ballistic Gun Assault Rifle Ballistic Cannon Light Cannon Launcher Grenade Launcher Slashing Weapon Makeshift Sword Build | -11 -10 -10 -10 ------- Run | Yrd Mat Min Exi Slots Evolved . | . . . . Power . | . . . . Propulsion . | . . . . Utility . | . . . . Weapon . | . . . . Parts Attached 26 | 6 11 8 1 Power 3 | 1 1 1 . Engine 2 | 1 . 1 . Core 1 | . 1 . . Reactor . | . . . . Propulsion 9 | 2 4 3 . Treads . | . . . . Leg . | . . . . Wheel 9 | 2 4 3 . Hover . | . . . . Flight . | . . . . Utility 6 | 1 3 1 1 Device 2 | . 2 . . Storage 2 | 1 1 . . Processor . | . . . . Hackware . | . . . . Protection 2 | . . 1 1 Artifact . | . . . . Weapon 8 | 2 3 3 . Energy Gun 1 | . . 1 . Energy Cannon 1 | . 1 . . Ballistic Gun 2 | 2 . . . Ballistic Cannon 2 | . 2 . . Launcher 1 | . . 1 . Special Weapon . | . . . . Impact Weapon . | . . . . Slashing Weapon 1 | . . 1 . Piercing Weapon . | . . . . Special Melee Weapon . | . . . . Unidentified Prototypes . | . . . . Parts Lost 14 | . 5 7 2 Power 1 | . 1 . . Propulsion 7 | . 3 3 1 Utility 1 | . . 1 . Weapon 5 | . 1 3 1 Highest Loss Streak 3 | . 3 3 2 To Critical Strikes . | . . . . Average Backups 11 | 1 9 12 12 Power 1 | . 1 1 1 Propulsion 1 | . 1 1 1 Utility 5 | . 3 7 7 Weapon 2 | . 3 2 2 Tool/Special . | . . . . Unused Backups 15 | . 4 . 11 Power 2 | . 1 . 1 Propulsion 4 | . 2 . 2 Utility 6 | . . . 6 Weapon 3 | . 1 . 2 Tool/Special . | . . . . Average Slot Usage (%) 94 | . 92 95 98 Engine 8 | . 12 2 14 Core 5 | . 1 11 . Wheel 25 | . 23 26 27 Device 5 | . 11 1 . Storage 14 | . 14 14 14 Protection 6 | . . 9 14 Energy Gun 6 | . . 12 11 Energy Cannon 3 | . 6 1 . Ballistic Gun 5 | . 12 . . Ballistic Cannon 5 | . 8 4 . Slashing Weapon 5 | . . 9 14 Peak Build Rating 15 | 6 10 14 15 Average Rating 10 | 4 7 12 13 On Entrance 7 | . 6 10 12 Avg Prop Armor Cover (%) . | . . . . Naked Turns . | . . . . Heaviest Build 32 | 13 32 32 29 Greatest Support 32 | 26 32 32 26 Greatest Overweight (x) 3 | . 3 3 1 Average Overweight (x) 1 | . 1 . 1 Largest Inventory Capacity 15 | 8 15 15 15 Average Capacity 13 | 6 12 15 15 Most Carried 15 | 5 13 15 15 Average Carried 11 | 1 9 13 14 Final Capacity 15 | 8 15 15 15 Final Carried 15 | 5 12 15 15 Class Distribution -------------------- 57% | Mutant 42% | Scavenger-Mutant Dominant Class ---------------- Mutant | -10/Materials Scavenger-Mutant | -10/Mines Scavenger-Mutant | -10/Exiles Resources | -11 -10 -10 -10 ----------- Run | Yrd Mat Min Exi Matter Collected 1154 | 162 815 177 . Remotely 70 | . 70 . . Salvage Created 1312 | 10 881 421 . Parts 74 | 2 49 23 . Haulers Intercepted . | . . . . Recyclers Shooed 3 | . 2 1 . Parts Field Recycled . | . . . . Retrieved Matter . | . . . . Parts Self-Destructed . | . . . . Prevented . | . . . . Parts Restored . | . . . . Kills | -11 -10 -10 -10 ------- Run | Yrd Mat Min Exi Combat Hostiles Destroyed 20 | . 14 6 . Melee 2 | . . 2 . Guns 4 | . 4 . . Cannons 12 | . 10 2 . AOE 2 | . . 2 . Classes Destroyed 8 | 1 6 . 1 Worker 2 | . 2 . . Tunneler 5 | 1 2 2 . Recycler 6 | . 4 2 . Operator 1 | . 1 . . Watcher 3 | . 3 . . Swarmer 3 | . 3 . . Grunt 17 | . 11 6 . Assembled 1 | . . . 1 Best Kill Streak 7 | 1 7 2 . Combat Bots Only 5 | . 5 2 . Max Kills in Single Turn 2 | 1 2 1 1 Gunslinging . | . . . . Exploded 1 | . . 1 . Melee 1 | . . 1 . Uniques/NPCs Destroyed . | . . . . Combat | -11 -10 -10 -10 -------- Run | Yrd Mat Min Exi Hostile Shots Fired 120 | . 69 39 12 Missed 31 | . 17 10 4 Hits 89 | . 52 29 8 Projectile 89 | . 52 29 8 AOE 6 | . . . 6 Critical Strikes 3 | . 3 . . Part Disruptions 1 | . 1 . . Damage Taken 1291 | . 657 391 243 Core 265 | . 75 49 141 Absorbed by Shields . | . . . . Redirected to Shielding 34 | . . 2 32 Core Remaining (%) 100 | 100 . . . Volleys Fired 89 | 1 63 21 4 Largest 2 | 2 2 2 1 Hottest 90 | 40 90 90 30 Shots Fired 171 | 2 126 39 4 Gun 65 | 2 54 9 . Cannon 100 | . 72 28 . Launcher 6 | . . 2 4 Special . | . . . . Kinetic 119 | 2 96 21 . Thermal 46 | . 30 16 . Explosive 6 | . . 2 4 Electromagnetic . | . . . . Robot Hit Streak 11 | 1 8 11 . Robot Miss Streak 4 | . 4 2 . Penetration Max . | . . . . Secondary Targets . | . . . . Shots Hit Robots 107 | 1 70 36 . Core Hits 60 | 1 37 15 7 Critical Kills . | . . . . Critical Parts Destroyed . | . . . . Critical Strikes 1 | . . 1 . Sever 1 | . . 1 . Melee Attacks 14 | . . 14 . Impact . | . . . . Slashing 14 | . . 14 . Piercing . | . . . . Sneak Attacks 4 | . . 4 . Combat Hostiles . | . . . . Follow-up Attacks . | . . . . Damage Inflicted 2338 | 11 1184 1007 136 Guns 449 | 11 358 80 . Cannons 1153 | . 826 327 . Explosions 221 | . . 85 136 Melee 515 | . . 515 . Ramming . | . . . . Kinetic 1124 | 11 894 219 . Thermal 478 | . 290 188 . Explosive 221 | . . 85 136 Electromagnetic . | . . . . Impact . | . . . . Slashing 515 | . . 515 . Piercing . | . . . . Highest Corruption . | . . . . Average Corruption . | . . . . Corruption Purged . | . . . . Corruption Blocked . | . . . . Overload Shots . | . . . . Overflow Damage 178 | . 1 177 . Projectiles 3 | . 1 2 . Explosions 9 | . . 9 . Melee 166 | . . 166 . Knockbacks 12 | . 10 2 . Impact . | . . . . Kinetic 9 | . 7 2 . Secondary 3 | . 3 . . Self-Inflicted Damage . | . . . . Shots . | . . . . Rammed . | . . . . Targets Rammed . | . . . . Kicked . | . . . . Crushed . | . . . . Highest Temperature 348 | . 348 245 1 Average Temperature 85 | . 92 75 1 Received Heat Transfer 585 | . 345 234 6 Effects 2 | . 2 . . Interference 2 | . 2 . . Siege Activations . | . . . . Martial Activations . | . . . . Shielding Activations . | . . . . Robots Disrupted . | . . . . Combat Hostiles . | . . . . Robots Corrupted . | . . . . Combat Hostiles . | . . . . Parts Fried . | . . . . Impact Corruptions . | . . . . Robots Melted . | . . . . Combat Hostiles . | . . . . Parts Melted 1 | . 1 . . Heat Transferred 1001 | . 592 409 . Parts Sabotaged . | . . . . Parts Stolen . | . . . . Parts Stripped . | . . . . Power Chain Reactions . | . . . . Alert | -11 -10 -10 -10 ------- Run | Yrd Mat Min Exi Maximum Alert Level . | . . . . Low Security (%) 100 | 100 100 100 . Level 1 . | . . . . Level 2 . | . . . . Level 3 . | . . . . Level 4 . | . . . . Level 5 . | . . . . High Security . | . . . . Max Security . | . . . . Peak Influence 139 | 5 139 72 . Initial 42 | . . 42 . Average 44 | . 76 14 . Influence Increases 722 | 5 518 199 . Destroy 0b10 Robot/C 400 | . 280 120 . Destroy 0b10 Robot/NC 85 | 5 60 20 . Destroy Leader 116 | . 86 30 . Successful Hack 46 | . 46 . . Select Force Hacks 30 | . 30 . . Disable Machine 15 | . 15 . . Destroy Structure 15 | . 1 14 . Lose Combat Pursuer 15 | . . 15 . Influence Decreases 722 | 5 408 309 . Entered New Map 68 | . . 68 . Time Decay 564 | 5 358 201 . Lost Part 90 | . 50 40 . Squads Dispatched 4 | . 4 . . Investigation 3 | . 3 . . Extermination . | . . . . Reinforcement 1 | . 1 . . Assault . | . . . . Garrison . | . . . . Intercept . | . . . . Searches Triggered . | . . . . Construction Impeded . | . . . . Haulers Reinforced . | . . . . Active Scanning Responses . | . . . . Cargo Convoy Interrupts . | . . . . Stealth | -11 -10 -10 -10 --------- Run | Yrd Mat Min Exi Distress Signals 1 | . 1 . . Communications Jammed . | . . . . Distress Signals . | . . . . Times Spotted 32 | . 22 7 3 Peak Tracking Total 5 | . 5 2 5 Tactical Retreats 1 | . . 1 . Traps | -11 -10 -10 -10 ------- Run | Yrd Mat Min Exi Traps Triggered 3 | . 3 . . Indirectly . | . . . . Trap Hack Attempts . | . . . . Triggered . | . . . . Disarmed . | . . . . Reprogrammed . | . . . . Reused . | . . . . Traps Extracted . | . . . . Installed . | . . . . Triggered . | . . . . Machines | -11 -10 -10 -10 ---------- Run | Yrd Mat Min Exi Machines Disabled 2 | . 1 . 1 Max in Single Turn 1 | . 1 . 1 Machines Repaired . | . . . . Machines Dismantled . | . . . . Machines Sabotaged . | . . . . Overloaded Fab Kills . | . . . . Hacking | -11 -10 -10 -10 --------- Run | Yrd Mat Min Exi Machines Accessed 10 | . 9 . 1 Terminals 6 | . 6 . . Fabricators . | . . . . Repair Stations 1 | . 1 . . Recycling Units 2 | . 2 . . Scanalyzers . | . . . . Garrison Access . | . . . . Total Hacks 30 | . 29 . 1 Successful 17 | . 16 . 1 Failed 13 | . 13 . . Catastrophic . | . . . . Database Lockouts . | . . . . Manual 13 | . 12 . 1 Terminals 21 | . 21 . . Fabricators . | . . . . Repair Stations 2 | . 2 . . Recycling Units 6 | . 6 . . Scanalyzers . | . . . . Garrison Access . | . . . . Terminal Hacks 11 | . 10 . 1 Robot Analysis 2 | . 2 . . Prototype ID Bank 2 | . 2 . . Branch Access Points 1 | . 1 . . Scanalyzer Index 1 | . 1 . . Locate Traps 1 | . 1 . . Hauler Manifests 1 | . 1 . . Zone Layout 2 | . 2 . . Proto ID Catalog 1 | . . . 1 Fabricator Hacks . | . . . . Repair Station Hacks 1 | . 1 . . Scan Component 1 | . 1 . . Recycling Unit Hacks 1 | . 1 . . Retrieve Components 1 | . 1 . . Scanalyzer . | . . . . Garrison Access Hacks . | . . . . Unauthorized Hacks 4 | . 4 . . Terminals 3 | . 3 . . Botnet 3 | . 3 . . Fabricators . | . . . . Repair Stations . | . . . . Recycling Units 1 | . 1 . . Tunnel 1 | . 1 . . Scanalyzers . | . . . . Garrison Access . | . . . . Data Cores Recovered . | . . . . Used . | . . . . Hacking Detections 8 | . 8 . . Full Trace Events 2 | . 2 . . Feedback Events . | . . . . Feedback Blocked . | . . . . Robot Schematics Acquired . | . . . . Robots Built . | . . . . Authchips . | . . . . Time . | . . . . Total Robot Build Rating . | . . . . Part Schematics Acquired . | . . . . Parts Built . | . . . . Authchips . | . . . . Time . | . . . . Total Part Build Rating . | . . . . Part Studies Acquired . | . . . . Parts Repaired . | . . . . Time . | . . . . Parts Recycled . | . . . . Recycled Matter . | . . . . Retrieved Matter . | . . . . Retrieved Components 8 | . 8 . . Parts Scanalyzed . | . . . . Part Schematics Acquired . | . . . . Parts Damaged . | . . . . Bothacking | -11 -10 -10 -10 ------------ Run | Yrd Mat Min Exi Used RIF Installer . | . . . . Robots Hacked . | . . . . Non-combat . | . . . . Combat . | . . . . Robot Hacks Applied . | . . . . Relay Couplers Released . | . . . . Fabnet Peak Effective % . | . . . . Robots Rewired . | . . . . Allies Hacked . | . . . . Hacks Repelled . | . . . . Allies | -11 -10 -10 -10 -------- Run | Yrd Mat Min Exi Total Allies . | . . . . Largest Group . | . . . . Highest-Rated Group . | . . . . Highest-Rated Ally . | . . . . Total Orders . | . . . . Ally Attacks . | . . . . Total Damage . | . . . . Kills . | . . . . Allies Corrupted . | . . . . Allies Melted . | . . . . Intel | -11 -10 -10 -10 ------- Run | Yrd Mat Min Exi Active Infowar (turns) 818 | . 719 99 . Sensors 818 | . 719 99 . Robot Analysis Total 2 | . 2 . . Derelict Logs Recovered 1 | . . 1 . Drone Launches . | . . . . Drone Recoveries . | . . . . Exploration | -11 -10 -10 -10 ------------- Run | Yrd Mat Min Exi Turns Passed 2205 | 66 943 948 248 Spaces Moved 1681 | 55 626 780 220 Core 8 | 8 . . . Treads . | . . . . Legs . | . . . . Wheels 1673 | 47 626 780 220 Hover . | . . . . Flight . | . . . . Fastest Speed 50 | 50 80 95 105 Average Speed 103 | 84 103 104 105 Slowest Speed 125 | 90 125 125 115 Overloaded Moves . | . . . . Propulsion Burnouts . | . . . . Robots Hopped . | . . . . Potential Cave-ins . | . . . . Cave-ins Triggered . | . . . . Exploration Rate (%) 58 | 3 82 99 49 Regions Visited 3 Branch Regions 2 Pre-discovered Areas 2 | . 1 1 . Known Exits Taken 1 | . 1 . . Unknown Exits Taken 2 | 1 . 1 . Scrap Searched 1 | . . 1 . Spaces Dug . | . . . . Terrain Destroyed 30 | . . 18 12 Melee . | . . . . Projectile . | . . . . AOE 30 | . . 18 12 Terrain Rammed . | . . . . Walls Destroyed . | . . . . Machines Disabled . | . . . . Actions | -11 -10 -10 -10 --------- Run | Yrd Mat Min Exi Total 1956 | 72 790 861 233 Wait 79 | . 54 25 . Move 1678 | 54 625 779 220 Hop . | . . . . Pick Up 41 | 11 18 10 2 Fast Attach 1 | . 1 . . Attach 19 | 6 6 7 . Detach . | . . . . Swap 20 | . 14 4 2 Drop 15 | . 9 1 5 Fire 89 | 1 63 21 4 Melee 14 | . . 14 . Ram . | . . . . Kick . | . . . . Crush . | . . . . Escape Stasis . | . . . . Rewire . | . . . . Trap . | . . . . Miscellaneous . | . . . . Route ------- -11/Scrapyard -10/Materials (discovered 4 exits: [*Mat x3] / *Min) -10/Mines (discovered 3 exits: [*Mat x2] / *Exi) -10/Exiles History --------- Turn | Location | Event 13 | -11/Scrapyard | Discovered new exit (range 15) 67 | -11/Scrapyard | Entered Materials 262 | -10/Materials | Identified exit to Mines 326 | -10/Materials | Build established: Mutant 336 | -10/Materials | Discovered new exit (range 4) 566 | -10/Materials | Lost 3 parts (3n) 653 | -10/Materials | Discovered new exit (range 11) 779 | -10/Materials | Discovered new exit (range 3) 1010 | -10/Materials | Entered Mines 1043 | -10/Mines | Met a Derelict bent on vengeance 1144 | -10/Mines | Lost 3 parts (1n1u1w) 1231 | -10/Mines | Learned Materials emergency access door positions 1249 | -10/Mines | A weapon hastily lodged in a ceiling crevice suddenly fell to the ground 1272 | -10/Mines | Discovered new exit (range 9) 1329 | -10/Mines | Lost 3 parts (2n1w) 1355 | -10/Mines | Found a Scrap Suit stashed away for nefarious purposes 1357 | -10/Mines | Found Scrap Suit 1429 | -10/Mines | Learned location of Storage (-9) 1516 | -10/Mines | Deemed a non-threat by the Exiles lab entrance 1516 | -10/Mines | Discovered new exit (range 5) 1576 | -10/Mines | Discovered new exit (range 14) 1622 | -10/Mines | Build established: Scavenger-Mutant 1958 | -10/Mines | Entered Exiles 1985 | -10/Exiles | Met 8R-AWN 2002 | -10/Exiles | Met EX-HEX 2033 | -10/Exiles | Met EX-BIN 2046 | -10/Exiles | Aligned with FarCom system 2047 | -10/Exiles | Given EX-Vault access code 2071 | -10/Exiles | Opened EX-Vault 2079 | -10/Exiles | Found Flying Fortress v7 2104 | -10/Exiles | Warned to stay clear of 0b10 Research branches 2118 | -10/Exiles | Exiles lab attacked by MAIN.C 2183 | -10/Exiles | Core integrity fell below 50% 2204 | -10/Exiles | Core integrity fell below 20% 2206 | -10/Exiles | Destroyed by D-53 Grenadier with Mini Grenade Launcher Last Messages --------------- 02188_ as-02667 springs to life. 02188_ as-08356 springs to life. 02188_ as-77826 springs to life. 02188_ as-95864 springs to life. 02188_ as-80617 springs to life. 02189_ as-75269 springs to life. 02190_ as-08356 destroyed. 02190_ as-02667 destroyed. 02190_ as-75269 destroyed. 02190_ as-80617 destroyed. 02190_ Machine disabled. 02191_ as-69217 destroyed. 02192_ Machine disabled. 02192_ as-95864 destroyed. 02193_ Machine disabled. 02194_ as-77826 destroyed. 02194_ Machine disabled. 02196_ Wheel destroyed. 02196_ Grenade Launcher destroyed. 02196_ Penetrated by Slug. Map ----- +----------------------------------------------------+ | ?????????#" """"#??????????????????????? | | ?????????#" """#??????????????????????? | | ?????????#" """#??????????????????????? | | ?????????#" """#??????????????????????? | | ?????????#" """#??????????????????????? | | ?????????#" """##?????????????????????? | | ?????????## """""?????????????????????? | | ??????????# """##?????????????????????? | | ??????????#" "X" """""?????????????????????? | | ??????????#" """ #??????????????????????? | | ??????????#" """""""""#??????????????????????? | | ?????????##" ###########??????????????????????? | | ????????##"" #????????????????????????????????? | | #??######"" #????????????????????????????????? | | "###""""""" ##???????????????????????????????? | | """""" " "" ##???###########????????????????? | | "" """ " #####"""""""""##???????????????? | | " " " """ """"##??????????????? | | "" " #??????????????? | | " """#??????????????? | | "a"#???????????#### | | " "##?????????##" | | ""###???????#" | | """""" """#??????##" | | ######""" "#????### | | ""##????#####""" @ ###### | | """##?????????##""" | | """##???????????#"""" | | ""#????????????#"" gg ## | | ##???????????#"""" d #### | | ???????????"" ""#?#" | | ?????????"" "##?## | | ???????? ##???? | | ????????? ##????? | | ????????? " ###?????? | | ?????????? "" "" ###???????? | | ???????????? ##""" " " ""#" #?????????? | | ???????????? ???####""" """## ####?????????? | | ???????????????????###""""#?#### ####????????????? | | ?????????????????????#####??????##???????????????? | | ?????????????????????????????????????????????????? | | ?????????????????????????????????????????????????? | | ?????????????????????????????????????????????????? | | ?????????????????????????????????????????????????? | | ?????????????????????????????????????????????????? | | ?????????????????????????????????????????????????? | | ?????????????????????????????????????????????????? | | ?????????????????????????????????????????????????? | | ?????????????????????????????????????????????????? | | ?????????????????????????????????????????????????? | +----------------------------------------------------+ Best States ------------- Heat Dissipation 25 Energy Generation 14 Energy Capacity 250 Matter Stores 300 Matter Capacity 300 Sight Range 16 Robot Scan Range 14 Terrain Scan Density 10 Core Shielding 20 Evasion (%) 44 Item Schematics ----------------- None Robot Schematics ------------------ None Fabricated ------------ Nothing Repaired ---------- Nothing Studied --------- None Alien Tech Used ----------------- None Achievements -------------- None Challenges ------------ None Game ------ Seed DispersionSkeletonActivator Manual? 0 Play Time 00:28:20 Cumulative 204.2 hours Start 2026.07.25 @ 12:56:52 End 2026.07.25 @ 15:34:13 Sessions 1 Manual Loads 0 Difficulty Rogue Special Mode None Game No. 67 Rogue 4 Adventurer 63 Explorer 0 Win Type - Total 1 Types 1/0/0/0/0/0/0/0/0/0 Lore% 71 Gallery% 62 Achievement% 52 Wizard Run 0 Options --------- Layout 1 ASCII 0 Keyboard 0 Movement Mouse Keybinds 0 Fullscreen 2 Font 32/SmallcapsGlow Map View 50x35 Zoom Use 0% Tactical HUD 1 Map Filters NONE Filters NONE Steam 1 RUN: 6decfe51-8052-403e-afe9-0b6bda213fd7